bitfinex-derivatives/quotes_ETHF0:USTF0_20241102
["timestamp","ask_amount","ask_price","bid_price","bid_amount"]
[1730582466816,1.44380066,2494.1,2494.0,4.5807862]
[1730582467111,1.44380066,2494.1,2494.0,6.15950994]
[1730582467704,1.44380066,2494.1,2494.0,6.15933243]
[1730582470217,1.44380066,2494.1,2494.0,5.95875561]
[1730582470414,1.44380066,2494.1,2494.0,6.15937526]
[1730582472409,1.44380066,2494.1,2494.0,6.1593061]
[1730582473615,1.44380066,2494.1,2494.0,4.37711941]
[1730582473909,5.85444066,2494.1,2494.0,1.28715644]
[1730582474213,5.85444066,2494.1,2494.0,1.08665016]
[1730582474412,5.85444066,2494.1,2494.0,0.52645765]
[1730582476321,5.85444066,2494.1,2494.0,0.40106]
[1730582476709,5.85444066,2494.1,2494.0,0.52646026]
[1730582477312,5.85444066,2494.1,2494.0,0.40106]
[1730582477512,6.29724066,2494.1,2494.0,0.40106]
[1730582479023,9.50504066,2494.1,2494.0,0.40106]
[1730582479717,6.29724066,2494.1,2494.0,0.40106]
[1730582480111,9.50504066,2494.1,2494.0,0.40106]
[1730582481316,0.40109,2493.9,2493.8,0.40108]
[1730582481515,1.84489066,2493.9,2493.8,0.52648416]
[1730582481715,5.85449066,2493.9,2493.8,0.52648416]
[1730582481912,6.75449066,2493.9,2493.8,0.52648416]
[1730582482314,6.75449066,2493.9,2493.8,0.40108]
[1730582487018,6.96833961,2493.9,2493.8,0.40108]
[1730582499230,2.95873961,2493.9,2493.8,0.40108]
[1730582500434,6.16653961,2493.9,2493.8,0.40108]
[1730582501128,2.95873961,2493.9,2493.8,0.40108]
[1730582501636,6.16653961,2493.9,2493.8,0.40108]
[1730582502132,2.95873961,2493.9,2493.8,0.40108]
[1730582503035,6.16653961,2493.9,2493.8,0.40108]
[1730582504125,2.95873961,2493.9,2493.8,0.40108]
[1730582505228,6.16653961,2493.9,2493.8,0.40108]
[1730582506440,2.95873961,2493.9,2493.8,0.40108]
[1730582507838,6.16653961,2493.9,2493.8,0.40108]
[1730582509138,5.70643961,2493.9,2493.8,0.40108]
[1730582510437,2.49863961,2493.9,2493.8,0.40108]
[1730582511038,9.71603961,2493.9,2493.8,0.40108]
[1730582511547,0.40109,2493.8,2493.7,0.4565]
[1730582511731,0.40109,2493.8,2493.7,0.85761]
[1730582511935,4.41149,2493.8,2493.7,0.85761]
[1730582512131,0.40109,2493.8,2493.7,0.85761]
[1730582512337,0.40109,2493.8,2493.7,0.4565]
[1730582512638,0.40109,2493.8,2493.7,0.85761]
[1730582514052,3.60889,2493.8,2493.7,0.85761]
[1730582514433,0.40109,2493.8,2493.7,0.4565]
[1730582514639,3.60889,2493.8,2493.7,0.4565]
[1730582515135,3.60889,2493.8,2493.5,0.83363]
[1730582515136,0.40112,2493.6,2493.5,0.83363]
[1730582515446,1.84492066,2493.6,2493.5,0.83363]
[1730582516051,5.85532066,2493.6,2493.5,0.83364]
[1730582516252,5.85532066,2493.6,2493.5,1.26504]
[1730582516647,5.85532066,2493.6,2493.5,0.8639]
[1730582517645,9.06312066,2493.6,2493.5,0.8639]
[1730582518652,9.06312066,2493.6,2493.5,1.26504]
[1730582519146,5.05272066,2493.6,2493.5,1.26504]
[1730582519352,5.85532066,2493.6,2493.5,1.26504]
[1730582519546,5.85532066,2493.6,2493.5,0.8639]
[1730582519755,9.06312066,2493.6,2493.5,0.8639]
[1730582520345,9.2743877,2493.6,2493.5,0.8639]
[1730582520858,9.2743877,2493.6,2493.5,1.26504]
[1730582521769,9.2743877,2493.6,2493.5,0.8639]
[1730582522161,6.0665877,2493.6,2493.5,0.8639]
[1730582522667,9.2743877,2493.6,2493.5,0.8639]
[1730582523170,6.0665877,2493.6,2493.5,0.8639]
[1730582523761,9.2743877,2493.6,2493.5,0.8639]
[1730582524867,6.0665877,2493.6,2493.5,0.8639]
[1730582525070,9.2743877,2493.6,2493.5,0.8639]
[1730582525760,9.2743877,2493.6,2493.5,1.26504]
[1730582526462,9.2743877,2493.6,2493.5,0.8639]
[1730582528468,6.0665877,2493.6,2493.5,0.8639]
[1730582528771,9.2743877,2493.6,2493.5,0.8639]
[1730582529671,6.0665877,2493.6,2493.5,0.8639]
[1730582530373,9.2743877,2493.6,2493.5,0.8639]
[1730582533275,5.2639877,2493.6,2493.5,0.8639]
[1730582534275,4.8628677,2493.6,2493.4,0.4591]
[1730582534477,0.82134,2493.5,2493.4,0.86025]
[1730582535880,4.02914,2493.5,2493.4,0.86025]
[1730582537071,0.82134,2493.5,2493.4,0.86025]
[1730582538383,4.02914,2493.5,2493.4,0.86025]
[1730582539480,4.02914,2493.5,2493.4,0.4591]
[1730582539783,4.02914,2493.5,2493.4,0.86025]
[1730582541075,0.82134,2493.5,2493.4,0.86025]
[1730582541681,4.02914,2493.5,2493.4,0.86025]
[1730582542185,0.82134,2493.5,2493.4,0.86025]
[1730582542780,3.60894,2493.5,2493.4,0.86025]
[1730582543781,0.40114,2493.5,2493.4,0.86025]
[1730582543982,3.60894,2493.5,2493.4,0.86025]
[1730582544986,0.40114,2493.5,2493.4,0.86025]
[1730582545486,3.60894,2493.5,2493.4,0.86025]
[1730582545791,0.40114,2493.5,2493.4,0.86025]
[1730582547989,3.60894,2493.5,2493.4,0.86025]
[1730582549083,0.40114,2493.5,2493.4,0.86025]
[1730582549477,3.60894,2493.5,2493.4,0.86025]
[1730582550783,0.40114,2493.5,2493.4,0.86025]
[1730582551291,3.60894,2493.5,2493.4,0.86025]
[1730582553189,0.40114,2493.5,2493.4,0.86025]
[1730582553689,3.60894,2493.5,2493.4,0.86025]
[1730582555184,0.40114,2493.5,2493.4,0.86025]
[1730582555586,3.60894,2493.5,2493.4,0.86025]
[1730582557991,3.60894,2493.5,2493.4,0.98568034]
[1730582559092,0.40114,2493.5,2493.4,0.98568034]
[1730582559489,3.60894,2493.5,2493.4,0.86025]
[1730582559793,3.60894,2493.5,2493.4,1.54623654]
[1730582559989,3.60894,2493.5,2493.4,1.97013645]
[1730582560187,3.60894,2493.5,2493.4,1.44355531]
[1730582560491,3.60894,2493.5,2493.4,0.883]
[1730582560885,3.60894,2493.5,2493.4,1.00843319]
[1730582561291,3.60894,2493.5,2493.4,1.56909403]
[1730582563190,3.60894,2493.5,2493.4,1.569093]
[1730582564591,0.40114,2493.5,2493.4,1.569093]
[1730582564793,0.40114,2493.5,2493.4,1.00843216]
[1730582564794,3.60894,2493.5,2493.4,1.00843216]
[1730582565092,3.60894,2493.5,2493.4,1.11011488]
[1730582565297,3.60894,2493.5,2493.4,0.54933216]
[1730582565499,3.60894,2493.5,2493.4,1.11011738]
[1730582565900,0.40114,2493.5,2493.4,1.11011738]
[1730582566095,3.60894,2493.5,2493.4,0.54933216]
[1730582566297,3.60894,2493.5,2493.4,1.11010947]
[1730582566498,0.40114,2493.5,2493.4,1.11010947]
[1730582566693,0.40114,2493.5,2493.4,0.4239]
[1730582566899,0.40114,2493.5,2493.4,1.11011206]
[1730582567101,0.40114,2493.5,2493.4,0.54933473]
[1730582567295,3.60894,2493.5,2493.4,0.54933473]
[1730582567600,3.60894,2493.5,2493.4,1.11010833]
[1730582568693,0.40114,2493.5,2493.4,1.11010833]
[1730582569003,3.60894,2493.5,2493.4,1.11010833]
[1730582570002,0.40114,2493.5,2493.4,0.54933473]
[1730582570402,3.60894,2493.5,2493.4,1.11009685]
[1730582570804,3.60894,2493.5,2493.4,1.11009561]
[1730582571105,0.40114,2493.5,2493.4,0.54933437]
[1730582571293,3.60894,2493.5,2493.4,0.54933437]
[1730582571498,3.60894,2493.5,2493.4,1.11009113]
[1730582571804,3.60894,2493.5,2493.4,0.54933437]
[1730582572004,3.60894,2493.5,2493.4,1.11009203]
[1730582573007,0.40114,2493.5,2493.4,1.11009203]
[1730582573408,3.60894,2493.5,2493.4,1.11009203]
[1730582574506,0.40114,2493.5,2493.4,1.11009203]
[1730582574707,3.60894,2493.5,2493.4,1.11009203]
[1730582577610,0.40114,2493.5,2493.4,1.11009203]
[1730582577801,3.60894,2493.5,2493.4,1.11009203]
[1730582578305,3.60894,2493.5,2493.4,1.11011192]
[1730582578503,3.60894,2493.5,2493.4,1.51126192]
[1730582579511,0.40114,2493.5,2493.4,1.51126192]
[1730582579703,3.60894,2493.5,2493.4,1.51126192]
[1730582580305,0.40114,2493.5,2493.4,1.51126192]
[1730582580502,3.60894,2493.5,2493.4,1.51126192]
[1730582581114,3.60894,2493.5,2493.4,1.38582101]
[1730582581614,0.40114,2493.5,2493.4,1.51124682]
[1730582582411,3.60894,2493.5,2493.4,1.51124682]
[1730582583112,0.40114,2493.5,2493.4,1.51124682]
[1730582583308,3.60894,2493.5,2493.4,1.51124682]
[1730582583814,0.40114,2493.5,2493.4,1.51124682]
[1730582584016,3.60894,2493.5,2493.4,1.51124682]
[1730582584416,0.40114,2493.5,2493.4,1.51124682]
[1730582584910,3.60894,2493.5,2493.4,1.51124682]
[1730582585414,0.40114,2493.5,2493.4,1.51124682]
[1730582585612,3.60894,2493.5,2493.4,1.51124682]
[1730582586207,0.40114,2493.5,2493.4,1.51124682]
[1730582586506,3.60894,2493.5,2493.4,1.51124682]
[1730582587608,0.40114,2493.5,2493.4,1.51124682]
[1730582587909,3.60894,2493.5,2493.4,0.82505]
[1730582588213,3.60894,2493.5,2493.4,1.51123965]
[1730582589011,0.40114,2493.5,2493.4,1.51123965]
[1730582589520,3.60894,2493.5,2493.4,1.51123965]
[1730582590514,3.2078,2493.5,2493.4,1.96473965]
[1730582590714,3.2078,2493.5,2493.4,3.21752401]
[1730582590914,3.60894,2493.5,2493.4,3.01684257]
[1730582591116,3.60894,2493.5,2493.4,1.96473965]
[1730582591706,3.60894,2493.5,2493.4,1.27855]
[1730582591910,3.60894,2493.5,2493.4,1.40397809]
[1730582592115,0.40114,2493.5,2493.4,1.96469199]
[1730582593019,3.60894,2493.5,2493.4,1.96469199]
[1730582593323,0.40114,2493.5,2493.4,1.96469199]
[1730582593912,3.60894,2493.5,2493.4,1.96469199]
[1730582594609,0.40114,2493.5,2493.4,1.96469199]
[1730582595624,3.60894,2493.5,2493.4,1.96469199]
[1730582596020,0.40114,2493.5,2493.4,1.96469199]
[1730582596220,3.60894,2493.5,2493.4,1.96469199]
[1730582596724,0.40114,2493.5,2493.4,1.96469199]
[1730582597022,0.40114,2493.5,2493.4,1.96462766]
[1730582597915,3.60894,2493.5,2493.4,1.96462766]
[1730582598315,0.40114,2493.5,2493.4,1.96462766]
[1730582598516,3.60894,2493.5,2493.4,1.96462766]
[1730582598921,3.60894,2493.5,2493.4,1.40397841]
[1730582599117,3.60894,2493.5,2493.4,1.96461205]
[1730582601026,0.40114,2493.5,2493.4,1.96461205]
[1730582602115,3.60894,2493.5,2493.4,1.96461205]
[1730582602815,0.40114,2493.5,2493.4,1.96461205]
[1730582603117,3.60894,2493.5,2493.4,1.96461205]
[1730582604120,0.40114,2493.5,2493.4,1.96461205]
[1730582605410,3.60894,2493.5,2493.4,1.96461205]
[1730582606423,3.60894,2493.5,2493.4,1.83914457]
[1730582606626,0.40114,2493.5,2493.4,1.83914457]
[1730582606820,3.60894,2493.5,2493.4,1.96457239]
[1730582609920,3.60894,2493.5,2493.4,1.964574]
[1730582610124,0.40114,2493.5,2493.4,1.964574]
[1730582610913,3.60894,2493.5,2493.4,1.964574]
[1730582611713,0.40114,2493.5,2493.4,1.964574]
[1730582611928,3.60894,2493.5,2493.4,1.964574]
[1730582612627,0.40114,2493.5,2493.4,1.964574]
[1730582612925,3.60894,2493.5,2493.4,1.964574]
[1730582613229,0.40114,2493.5,2493.4,1.964574]
[1730582613521,3.60894,2493.5,2493.4,1.96459407]
[1730582614028,3.60894,2493.5,2493.4,1.9645945]
[1730582615026,0.40114,2493.5,2493.4,1.9645945]
[1730582615417,3.60894,2493.5,2493.4,1.9645945]
[1730582615828,0.40114,2493.5,2493.4,1.9645945]
[1730582616921,3.60894,2493.5,2493.4,1.9645945]
[1730582617122,3.60894,2493.5,2493.4,1.27855]
[1730582617323,3.60894,2493.5,2493.4,1.96462213]
[1730582617927,3.60894,2493.5,2493.4,3.21741197]
[1730582618523,0.40114,2493.5,2493.4,3.21741197]
[1730582619431,0.40114,2493.5,2493.4,3.21743336]
[1730582619729,0.40114,2493.5,2493.4,2.65676955]
[1730582620321,3.60894,2493.5,2493.4,2.53133988]
[1730582620525,3.60894,2493.5,2493.4,2.73202681]
[1730582620730,3.60894,2493.5,2493.4,3.21744057]
[1730582620929,0.40114,2493.5,2493.4,3.21744057]
[1730582621325,0.40114,2493.5,2493.4,3.21744047]
[1730582621326,3.60894,2493.5,2493.4,3.21744047]
[1730582624533,0.40114,2493.5,2493.4,3.21744047]
[1730582624832,0.40114,2493.5,2493.4,3.21743241]
[1730582626832,3.60894,2493.5,2493.4,3.21743241]
[1730582627225,0.40114,2493.5,2493.4,2.6567612]
[1730582627426,3.60894,2493.5,2493.4,3.21747491]
[1730582627825,3.60894,2493.5,2493.4,1.96468997]
[1730582629034,0.40114,2493.5,2493.4,1.96468997]
[1730582630230,3.60894,2493.5,2493.4,1.96468997]
[1730582631430,0.40114,2493.5,2493.4,1.96468997]
[1730582631632,3.60894,2493.5,2493.4,1.96468997]
[1730582632141,3.60894,2493.5,2493.4,1.96470874]
[1730582633231,0.40114,2493.5,2493.4,1.96470874]
[1730582633537,3.60894,2493.5,2493.4,1.96470874]
[1730582634635,0.40114,2493.5,2493.4,1.96470874]
[1730582634833,3.60894,2493.5,2493.4,1.96470874]
[1730582638137,3.60894,2493.5,2493.4,1.27855]
[1730582638332,3.60894,2493.5,2493.4,1.96475814]
[1730582639339,3.60894,2493.5,2493.4,1.27855]
[1730582639643,3.60894,2493.5,2493.4,1.96475832]
[1730582640942,3.60894,2493.5,2493.4,2.16544034]
[1730582641137,3.60894,2493.5,2493.4,1.96475832]
[1730582641337,0.40114,2493.5,2493.4,1.96475832]
[1730582641739,0.40114,2493.5,2493.4,1.40397753]
[1730582642041,3.60894,2493.5,2493.4,1.96475904]
[1730582642442,0.40114,2493.5,2493.4,1.96475904]
[1730582642943,3.60894,2493.5,2493.4,1.96475904]
[1730582643443,0.40114,2493.5,2493.4,1.96475904]
[1730582645536,3.60894,2493.5,2493.4,1.96475904]
[1730582645741,3.60894,2493.5,2493.4,1.96475356]
[1730582648048,0.40114,2493.5,2493.4,1.96475356]
[1730582648440,3.60894,2493.5,2493.4,1.96475356]
[1730582648940,3.60894,2493.5,2493.4,1.40397841]
[1730582649148,3.60894,2493.5,2493.4,1.96475636]
[1730582649149,0.40114,2493.5,2493.4,1.96475636]
[1730582649644,3.60894,2493.5,2493.4,1.96475636]
[1730582650042,0.40114,2493.5,2493.4,1.96475636]
[1730582650548,3.60894,2493.5,2493.4,1.56360636]
[1730582651135,3.60894,2493.5,2493.4,1.96475636]
[1730582651440,3.60894,2493.5,2493.4,1.56360636]
[1730582651638,3.60894,2493.5,2493.4,0.68620636]
[1730582651840,4.03334,2493.5,2493.4,0.68620636]
[1730582653850,4.03334,2493.5,2493.4,0.12542841]
[1730582654952,4.03334,2493.5,2493.4,0.68616378]
[1730582655942,0.82554,2493.5,2493.4,0.68616378]
[1730582656148,4.03334,2493.5,2493.4,0.68616378]
[1730582656347,4.03334,2493.5,2493.4,0.68614866]
[1730582656648,0.82554,2493.5,2493.4,0.68614866]
[1730582658248,4.03334,2493.5,2493.4,0.68614866]
[1730582658443,4.03334,2493.5,2493.4,0.12543231]
[1730582658649,0.82554,2493.5,2493.4,0.12543231]
[1730582658849,4.03334,2493.5,2493.4,0.12543231]
[1730582659150,0.82554,2493.5,2493.4,0.12543231]
[1730582659353,4.03334,2493.5,2493.4,0.12543231]
[1730582659548,4.03334,2493.5,2493.3,0.4211]
[1730582659849,2.28705066,2493.4,2493.3,0.82227]
[1730582660049,2.28705066,2493.4,2493.3,1.50838146]
[1730582660347,1.88590066,2493.4,2493.3,1.50838146]
[1730582660950,5.09370066,2493.4,2493.3,1.50838146]
[1730582662149,5.49485066,2493.4,2493.3,1.50838146]
[1730582665343,5.49485066,2493.4,2493.3,1.10721146]
[1730582665543,5.49485066,2493.4,2493.3,0.12543324]
[1730582665753,0.40119,2493.2,2493.0,2.39750292]
[1730582665954,0.40119,2493.2,2493.0,2.79872292]
[1730582665955,4.0657,2493.1,2493.0,2.79872292]
[1730582666154,3.2078,2493.1,2493.0,3.68552301]
[1730582666344,1.44380066,2493.2,2493.1,0.4012]
[1730582666951,4.65160066,2493.2,2493.1,1.08714621]
[1730582667153,5.05279066,2493.2,2493.1,1.08714621]
[1730582668152,1.84499066,2493.2,2493.1,1.08714621]
[1730582668352,1.84499066,2493.2,2493.1,0.5266387]
[1730582668551,2.29049066,2493.2,2493.1,1.08702038]
[1730582668747,2.29049066,2493.2,2493.1,0.5266416]
[1730582670253,2.29049066,2493.2,2493.1,0.52664507]
[1730582670554,5.49829066,2493.2,2493.1,0.52664507]
[1730582670949,2.29049066,2493.2,2493.1,0.52664507]
[1730582671355,2.29049066,2493.2,2493.1,0.4012]
[1730582671555,5.49829066,2493.2,2493.1,0.4012]
[1730582671956,2.29049066,2493.2,2493.1,0.4012]
[1730582673159,5.49829066,2493.2,2493.1,0.4012]
[1730582674159,2.29049066,2493.2,2493.1,0.4012]
[1730582674555,5.49829066,2493.2,2493.1,0.4012]
[1730582675048,3.2078,2493.5,2493.2,4.0112]
[1730582675254,1.44380066,2494.1,2493.8,0.40109]
[1730582675447,1.44380066,2494.1,2494.0,0.40106]
[1730582675962,1.44380066,2494.1,2494.0,4.41066]
[1730582676258,1.44380066,2494.1,2494.0,0.40106]
[1730582676457,1.44380066,2494.1,2494.0,4.41066]
[1730582683162,1.44380066,2494.1,2494.0,0.40106]
[1730582692970,0.4587,2494.2,2494.1,0.40104]
[1730582694762,1.90250066,2494.2,2494.1,0.40104]
[1730582700373,2.30353066,2494.2,2494.1,0.40104]
[1730582700668,4.4683,2494.2,2493.5,1.46155]
[1730582700969,1.44380066,2493.6,2493.3,1.00293]
[1730582701166,1.44380066,2493.7,2493.3,1.00293]
[1730582701470,2.31540066,2493.7,2493.6,0.40112]
[1730582701867,2.31540066,2493.7,2493.6,4.41152]
[1730582703173,2.31540066,2493.7,2493.6,0.40112]
[1730582705064,2.31540066,2493.7,2493.6,4.41152]
[1730582706773,2.31540066,2493.7,2493.6,0.40112]
[1730582708070,2.31540066,2493.7,2493.6,4.41152]
[1730582708482,2.31540066,2493.7,2493.6,0.40112]
[1730582710075,2.31540066,2493.7,2493.6,4.41152]
[1730582712176,2.31540066,2493.7,2493.6,0.40112]
[1730582713376,0.8716,2493.7,2493.6,0.40112]
[1730582720293,0.8716,2493.7,2493.6,0.52653171]
[1730582723294,0.8716,2493.7,2493.6,0.40112]
[1730582723497,0.8716,2493.7,2493.6,0.52653384]
[1730582723691,0.8716,2493.7,2493.6,0.52653327]
[1730582723893,0.8716,2493.7,2493.6,0.40112]
[1730582724093,0.8716,2493.7,2493.6,0.52653231]
[1730582724289,0.8716,2493.7,2493.6,1.08628912]
[1730582724594,0.4316,2493.7,2493.6,1.08629606]
[1730582724798,0.4316,2493.7,2493.6,0.52653231]
[1730582728995,1.87540066,2493.7,2493.6,0.52653231]
[1730582730495,1.87540066,2493.7,2493.6,1.08636125]
[1730582730694,1.87540066,2493.7,2493.6,0.40112]
[1730582730894,1.87540066,2493.7,2493.6,1.08636873]
[1730582731195,1.87540066,2493.7,2493.6,1.08637192]
[1730582731394,0.4316,2493.7,2493.6,1.08637192]
[1730582734398,0.4316,2493.7,2493.6,0.40112]
[1730582734592,0.4316,2493.7,2493.6,0.52652653]
[1730582734895,0.4316,2493.7,2493.6,1.08644842]
[1730582738098,0.4316,2493.7,2493.6,0.40112]
[1730582738290,0.4316,2493.7,2493.6,1.08656176]
[1730582739701,0.4316,2493.7,2493.6,1.28721018]
[1730582739997,0.4316,2493.7,2493.6,1.08656176]
[1730582740999,0.4316,2493.7,2493.6,0.96127892]
[1730582741201,0.4316,2493.7,2493.6,1.08668879]
[1730582741601,0.4316,2493.7,2493.6,1.28734488]
[1730582742200,0.4316,2493.7,2493.6,2.46498173]
[1730582743604,0.4316,2493.7,2493.6,3.36156655]
[1730582744506,0.4316,2493.7,2493.6,4.88809569]
[1730582744901,0.4316,2493.7,2493.6,3.36156655]
[1730582745300,0.4316,2493.7,2493.6,4.88868779]
[1730582745501,0.4316,2493.7,2493.6,4.68503567]
[1730582745715,0.4316,2493.7,2493.6,4.89053998]
[1730582745902,0.4316,2493.7,2493.6,5.41570682]
[1730582746103,0.4316,2493.7,2493.6,3.83743112]
[1730582746403,0.4316,2493.7,2493.6,4.89055254]
[1730582746608,0.4316,2493.7,2493.6,4.89056119]
[1730582746803,0.4316,2493.7,2493.6,5.41570682]
[1730582747006,0.4316,2493.7,2493.6,3.83743112]
[1730582747800,0.4316,2493.7,2493.6,4.89066549]
[1730582747997,0.4316,2493.7,2493.6,3.36348724]
[1730582749513,0.4316,2493.7,2493.6,3.36351386]
[1730582750007,0.8904,2493.7,2493.6,3.36351386]
[1730582750207,0.8904,2493.7,2493.6,4.8906411]
[1730582750408,0.8904,2493.7,2493.6,4.89066816]
[1730582750603,0.8904,2493.7,2493.6,3.36351386]
[1730582751312,0.8904,2493.7,2493.6,4.8906685]
[1730582751512,0.8904,2493.7,2493.6,4.76525863]
[1730582752017,0.8904,2493.7,2493.6,3.23810399]
[1730582752207,0.8904,2493.7,2493.6,4.765271]
[1730582752408,0.8904,2493.7,2493.6,3.23810399]
[1730582752609,0.8904,2493.7,2493.6,2.34102348]
[1730582752811,0.8904,2493.7,2493.6,2.34104322]
[1730582753010,0.8904,2493.7,2493.6,3.23812183]
[1730582753612,0.8904,2493.7,2493.6,3.86823467]
[1730582753811,0.8904,2493.7,2493.6,4.76530666]
[1730582754215,0.8904,2493.7,2493.6,3.7121293]
[1730582754618,0.8904,2493.7,2493.6,4.76529416]
[1730582754818,0.8904,2493.7,2493.6,4.76527315]
[1730582755108,0.8904,2493.7,2493.6,3.7121293]
[1730582755317,0.8904,2493.7,2493.6,4.56460151]
[1730582755523,0.8904,2493.7,2493.6,4.76526205]
[1730582756513,0.8904,2493.7,2493.6,3.71211213]
[1730582756918,0.8904,2493.7,2493.6,4.76526865]
[1730582757217,0.8904,2493.7,2493.6,5.29038783]
[1730582757522,0.4506,2493.8,2493.7,0.40111]
[1730582757818,0.4506,2493.8,2493.7,5.29150428]
[1730582758118,0.4506,2493.8,2493.7,5.29117944]
[1730582758521,0.9044,2494.0,2493.7,5.29117944]
[1730582758708,1.3622,2494.0,2493.9,0.40107]
[1730582758914,1.3622,2494.0,2493.9,1.08714485]
[1730582759621,1.3622,2494.0,2493.9,3.23713294]
[1730582759925,1.3622,2494.0,2493.9,2.98010689]
[1730582760114,1.3622,2494.0,2493.9,4.7631106]
[1730582760314,1.3622,2494.0,2493.9,4.76311417]
[1730582760520,1.3622,2494.0,2493.9,3.23679732]
[1730582761619,1.3622,2494.0,2493.9,1.28746368]
[1730582762329,1.3622,2494.0,2493.9,0.40107]
[1730582762524,1.3622,2494.0,2493.9,1.16195517]
[1730582762823,1.3622,2494.0,2493.9,1.45379361]
[1730582763021,1.3622,2494.0,2493.9,3.03561774]
[1730582763424,1.3622,2494.0,2493.9,2.13935129]
[1730582763623,1.3622,2494.0,2493.9,3.23606971]
[1730582763925,1.3622,2494.0,2493.9,2.33997346]
[1730582764325,1.3622,2494.0,2493.9,1.28724985]
[1730582764723,1.3622,2494.0,2493.9,1.28706361]
[1730582766033,1.3622,2494.0,2493.9,0.40107]
[1730582766226,1.3622,2494.0,2493.9,1.28697513]
[1730582766419,1.3622,2494.0,2493.9,1.08635452]
[1730582766624,1.3622,2494.0,2493.9,1.28697654]
[1730582766823,1.3622,2494.0,2493.9,1.08635452]
[1730582767025,1.3622,2494.0,2493.9,1.28697465]
[1730582767325,1.3622,2494.0,2493.9,1.08635452]
[1730582769419,1.3622,2494.0,2493.9,0.52645788]
[1730582769621,1.3622,2494.0,2493.9,0.40107]
[1730582769828,1.3622,2494.0,2493.9,1.08616419]
[1730582773026,1.3622,2494.0,2493.9,0.40107]
[1730582773227,1.3622,2494.0,2493.9,0.9606651]
[1730582773428,1.3622,2494.0,2493.9,0.40107]
[1730582773629,1.3622,2494.0,2493.9,1.08605264]
[1730582773825,1.3622,2494.0,2493.9,0.52646009]
[1730582774036,1.3622,2494.0,2493.9,1.08603421]
[1730582776838,1.3622,2494.0,2493.9,0.9605882]
[1730582777042,1.3622,2494.0,2493.9,1.08597768]
[1730582778538,1.3622,2494.0,2493.9,2.13870129]
[1730582780543,1.3622,2494.0,2493.9,1.08597768]
[1730582783840,1.3622,2494.0,2493.9,0.40107]
[1730582784051,1.3622,2494.0,2493.9,1.08587726]
[1730582784245,1.3622,2494.0,2493.9,0.5264593]
[1730582784549,1.3622,2494.0,2493.9,1.08587604]
[1730582786142,1.3622,2494.0,2493.9,2.13859965]
[1730582787346,1.3622,2494.0,2493.9,2.13859379]
[1730582787542,1.3622,2494.0,2493.9,1.45379361]
[1730582787843,1.3622,2494.0,2493.9,2.13858983]
[1730582791050,1.3622,2494.0,2493.9,1.45379361]
[1730582791353,1.3622,2494.0,2493.9,2.13860852]
[1730582792347,1.3622,2494.0,2493.9,1.08588491]
[1730582792857,1.3622,2494.0,2493.9,2.13860852]
[1730582793357,1.3622,2494.0,2493.9,2.33921917]
[1730582794659,1.3622,2494.0,2493.9,1.77979466]
[1730582794855,1.3622,2494.0,2493.9,3.86340533]
[1730582795051,1.3622,2494.0,2493.9,3.86339723]
[1730582795356,1.3622,2494.0,2493.9,2.33932512]
[1730582795548,1.3622,2494.0,2493.9,4.75889119]
[1730582796356,1.3622,2494.0,2493.9,4.75889104]
[1730582796556,1.3622,2494.0,2493.9,5.28556958]
[1730582796746,1.3622,2494.0,2493.9,9.29516958]
[1730582796950,0.9146,2494.0,2493.9,9.29516958]
[1730582798059,0.9146,2494.0,2493.9,7.71576743]
[1730582798265,0.9146,2494.0,2493.9,9.29547141]
[1730582798556,2.35840066,2494.0,2493.9,5.28587141]
[1730582798748,2.35840066,2494.0,2493.9,2.33798329]
[1730582799756,0.9146,2494.0,2493.9,2.33798329]
[1730582800157,0.9146,2494.0,2493.9,3.23391223]
[1730582800556,0.9146,2494.0,2493.9,4.75915017]
[1730582801355,0.9146,2494.0,2493.9,4.75984646]
[1730582801554,0.9146,2494.0,2493.9,2.61175284]
[1730582801856,0.9146,2494.0,2493.9,3.10369569]
[1730582802455,0.9146,2494.0,2493.9,3.63109776]
[1730582802860,0.9146,2494.0,2493.9,3.63187304]
[1730582803058,0.9146,2494.0,2493.9,5.41443247]
[1730582803562,0.9146,2494.0,2493.9,5.28904459]
[1730582803961,0.9146,2494.0,2493.9,5.28925764]
[1730582804167,0.9146,2494.0,2493.9,5.16386985]
[1730582804364,0.9146,2494.0,2493.9,5.48987762]
[1730582806364,0.9146,2494.0,2493.9,4.41201758]
[1730582806559,0.9146,2494.0,2493.9,5.99097971]
[1730582806758,0.9146,2494.0,2493.9,4.41201758]
[1730582807157,0.9146,2494.0,2493.9,2.95525356]
[1730582807356,0.9146,2494.0,2493.9,4.41231443]
[1730582807869,0.9146,2494.0,2493.9,4.41234564]
[1730582808264,0.9146,2494.0,2493.9,4.41234918]
[1730582811565,0.9146,2494.0,2493.9,4.28696253]
[1730582811769,0.9146,2494.0,2493.9,4.41234708]
[1730582812266,0.9146,2494.0,2493.9,4.41295162]
[1730582813960,0.9146,2494.0,2493.9,4.21233116]
[1730582815068,0.9146,2494.0,2493.9,1.92768776]
[1730582815267,0.9146,2494.0,2493.9,4.01183678]
[1730582815573,0.9146,2494.0,2493.9,4.21245355]
[1730582816171,0.9146,2494.0,2493.9,6.31682115]
[1730582816571,0.9146,2494.0,2493.9,6.31681747]
[1730582816771,0.9146,2494.0,2493.9,6.3168942]
[1730582817073,0.9146,2494.0,2493.9,4.2125266]
[1730582817777,0.9146,2494.0,2493.9,3.71098835]
[1730582818370,0.9146,2494.0,2493.9,4.21253978]
[1730582820777,0.9146,2494.0,2493.9,4.21263896]
[1730582821368,0.9146,2494.0,2493.9,2.63003168]
[1730582821581,0.9146,2494.0,2493.9,4.41340428]
[1730582824075,0.9146,2494.0,2493.9,4.21278751]
[1730582824679,0.9146,2494.0,2493.9,4.21288325]
[1730582824874,0.9146,2494.0,2493.9,4.21297423]
[1730582825379,0.9146,2494.0,2493.9,4.33836297]
[1730582828377,0.9146,2494.0,2493.9,2.05334588]
[1730582828671,0.9146,2494.0,2493.9,4.13774481]
[1730582828882,0.9146,2494.0,2493.9,4.33836371]
[1730582831583,0.9146,2494.0,2493.9,6.44273131]
[1730582831986,0.9146,2494.0,2493.9,6.44272715]
[1730582832782,0.9146,2494.0,2493.9,4.33835955]